fUST/lending_fUST_20260604
["ID","MTS","AMOUNT","RATE_DAILY","PERIOD"]
[423970856,1780524653000,-4845.706072,0.0002341,2]
[423970884,1780524653000,-457.0791512,0.0002341,2]
[423970852,1780524653000,-4845.706072,0.0002341,2]
[423970901,1780524653000,-457.0791509,0.0002341,2]
[423970889,1780524653000,-301.704588,0.0002341,2]
[423970894,1780524653000,-215.79,0.0002341,2]
[423970893,1780524653000,-151.0,0.0002341,2]
[423970896,1780524653000,-457.0791509,0.0002341,2]
[423970898,1780524653000,-151.0,0.0002341,2]
[423970895,1780524653000,-215.8,0.0002341,2]
[423970897,1780524653000,-326.2939756,0.0002341,2]
[423970904,1780524653000,-457.0791509,0.0002341,2]
[423970915,1780524653000,-326.2939756,0.0002341,2]
[423970916,1780524653000,-165.32975613,0.0002341,120]
[423970914,1780524653000,-151.0,0.0002341,2]
[423970917,1780524653000,-318.55968363,0.0002341,120]
[423970912,1780524653000,-153.719898,0.0002341,2]
[423970905,1780524653000,-457.0791509,0.0002341,2]
[423970907,1780524653000,-326.2939756,0.0002341,2]
[423970903,1780524653000,-326.2939756,0.0002341,2]
[423970909,1780524653000,-151.0,0.0002341,2]
[423970906,1780524653000,-151.0,0.0002341,2]
[423970911,1780524653000,-151.0,0.0002341,2]
[423970908,1780524653000,-375.2625847,0.0002341,2]
[423970913,1780524653000,-457.0791509,0.0002341,2]
[423970925,1780524653000,-1758.39,0.00023417,2]
[423970920,1780524653000,-256.85,0.00023413,7]
[423970921,1780524653000,-4835.58,0.00023417,2]
[423970924,1780524653000,-3077.19,0.00023417,7]
[423970922,1780524653000,-4835.59,0.00023417,2]
[423970923,1780524653000,-3077.19,0.00023417,7]
[423970850,1780524653000,-4845.706072,0.0002341,2]
[423970891,1780524653000,-151.0,0.0002341,2]
[423970902,1780524653000,-151.0,0.0002341,2]
[423970918,1780524653000,-157.52460794,0.00023411,7]
[423970900,1780524653000,-151.0,0.0002341,2]
[423970892,1780524653000,-151.3058737,0.0002341,2]
[423970854,1780524653000,-4845.706072,0.0002341,2]
[423970853,1780524653000,-4845.706072,0.0002341,2]
[423970851,1780524653000,-4845.706072,0.0002341,2]
[423970861,1780524653000,-4845.706072,0.0002341,2]
[423970873,1780524653000,-151.0,0.0002341,2]
[423970872,1780524653000,-151.0,0.0002341,2]
[423970862,1780524653000,-4845.706072,0.0002341,2]
[423970868,1780524653000,-160.183731,0.0002341,2]
[423970863,1780524653000,-4845.706072,0.0002341,2]
[423970865,1780524653000,-4845.706072,0.0002341,2]
[423970866,1780524653000,-4845.706072,0.0002341,2]
[423970867,1780524653000,-4845.7060653,0.0002341,2]
[423970869,1780524653000,-151.0,0.0002341,2]
[423970855,1780524653000,-4845.706072,0.0002341,2]
[423970864,1780524653000,-4845.706072,0.0002341,2]
[423970871,1780524653000,-151.0,0.0002341,2]
[423970886,1780524653000,-151.0,0.0002341,2]
[423970883,1780524653000,-151.0,0.0002341,2]
[423970888,1780524653000,-151.0,0.0002341,2]
[423970882,1780524653000,-151.0,0.0002341,2]
[423970885,1780524653000,-151.0,0.0002341,2]
[423970887,1780524653000,-326.2939756,0.0002341,2]
[423970876,1780524653000,-151.0,0.0002341,2]
[423970879,1780524653000,-151.0,0.0002341,2]
[423970878,1780524653000,-151.0,0.0002341,2]
[423970875,1780524653000,-151.0,0.0002341,2]
[423970877,1780524653000,-151.0,0.0002341,2]
[423970881,1780524653000,-151.0,0.0002341,2]
[423970874,1780524653000,-151.0,0.0002341,2]
[423970959,1780524654000,-150.54,0.00023651,7]
[423970962,1780524654000,-238.15,0.0002368,7]
[423970967,1780524654000,-1654.33,0.000237,2]
[423970965,1780524654000,-1403.34,0.000237,2]
[423970969,1780524654000,-1547.87,0.000237,2]
[423970960,1780524654000,-225.83,0.00023654,7]
[423970961,1780524654000,-256.85,0.00023663,7]
[423970957,1780524654000,-196.8,0.0002365,7]
[423970958,1780524654000,-155.73,0.00023651,7]
[423970964,1780524654000,-973.9465,0.000237,2]
[423970966,1780524654000,-1656.82,0.000237,2]
[423970980,1780524654000,-196.8,0.000237,7]
[423970971,1780524654000,-331.44,0.000237,2]
[423970981,1780524654000,-302.9964,0.000237,2]
[423970983,1780524654000,-155.73,0.00023701,7]
[423970975,1780524654000,-1606.092,0.000237,2]
[423970978,1780524654000,-1701.1779,0.000237,2]
[423970973,1780524654000,-387.34,0.000237,2]
[423970984,1780524654000,-150.54,0.00023701,7]
[423970970,1780524654000,-1547.87,0.000237,2]
[423970956,1780524654000,-238.15,0.0002363,7]
[423970977,1780524654000,-387.34,0.000237,2]
[423970968,1780524654000,-1547.87,0.000237,2]
[423970945,1780524654000,-300.0,0.0002351,2]
[423970933,1780524654000,-497.23,0.00023471,2]
[423970946,1780524654000,-256.85,0.00023513,7]
[423970976,1780524654000,-1606.09,0.000237,2]
[423970926,1780524654000,-500.0,0.00023428,30]
[423970928,1780524654000,-838999.5885,0.00023444,2]
[423970930,1780524654000,-150.54,0.00023451,7]
[423970929,1780524654000,-155.73,0.00023451,7]
[423970935,1780524654000,-486.98,0.00023471,7]
[423970934,1780524654000,-765.25,0.00023471,2]
[423970939,1780524654000,-4105.68,0.00023479,7]
[423970931,1780524654000,-256.85,0.00023463,7]
[423970938,1780524654000,-3225.9,0.00023479,2]
[423970936,1780524654000,-478.0,0.00023476,120]
[423970937,1780524654000,-3225.9,0.00023479,2]
[423970941,1780524654000,-155.73,0.00023501,7]
[423970951,1780524654000,-155.73,0.00023601,7]
[423970952,1780524654000,-150.54,0.00023601,7]
[423970940,1780524654000,-1173.05,0.00023479,2]
[423970942,1780524654000,-150.54,0.00023501,7]
[423970954,1780524654000,-225.83,0.00023604,7]
[423970955,1780524654000,-256.85,0.00023613,7]
[423970949,1780524654000,-209.2000549,0.00023551,7]
[423970950,1780524654000,-256.85,0.00023563,7]
[423970947,1780524654000,-155.73,0.00023551,7]
[423970948,1780524654000,-150.54,0.00023551,7]
[423970944,1780524654000,-151.71845424,0.00023505,2]
[423970974,1780524654000,-1606.092,0.000237,2]
[423970986,1780524654000,-202.0,0.00023705,30]
[423970985,1780524654000,-225.83,0.00023704,7]
[423971016,1780524654000,-196.8,0.0002395,7]
[423971017,1780524654000,-160.0,0.00023965,8]
[423971019,1780524654000,-238.15,0.0002398,7]
[423971020,1780524654000,-160.0,0.00024,7]
[423971021,1780524654000,-28537.79395783,0.00024,2]
[423971024,1780524654000,-1756.37129874,0.00024,2]
[423971027,1780524654000,-238.15,0.0002403,7]
[423971025,1780524654000,-196.8,0.00024,7]
[423971026,1780524654000,-202.0,0.00024,2]
[423971028,1780524654000,-196.8,0.0002405,7]
[423971029,1780524654000,-238.15,0.0002408,7]
[423971032,1780524654000,-1891.0366,0.000241,2]
[423971033,1780524654000,-1310.295,0.000241,2]
[423971036,1780524654000,-331.49,0.000241,2]
[423971035,1780524654000,-1310.29,0.000241,2]
[423971031,1780524654000,-2296.5876,0.000241,2]
[423971039,1780524654000,-1649.31,0.000241,2]
[423971034,1780524654000,-1310.295,0.000241,2]
[423971038,1780524654000,-339.5609,0.000241,2]
[423971040,1780524654000,-196.8,0.000241,7]
[423971042,1780524654000,-196.8,0.0002415,7]
[423971041,1780524654000,-238.15,0.0002413,7]
[423970979,1780524654000,-1702.6165,0.000237,2]
[423971015,1780524654000,-238.15,0.0002393,7]
[423971014,1780524654000,-225.87818154,0.00023904,7]
[423971022,1780524654000,-471.13351287,0.00024,2]
[423971012,1780524654000,-196.8,0.000239,7]
[423970987,1780524654000,-232.01513474,0.00023713,120]
[423971011,1780524654000,-238.15,0.0002388,7]
[423970988,1780524654000,-256.85,0.00023713,7]
[423970989,1780524654000,-238.15,0.0002373,7]
[423970990,1780524654000,-196.8,0.0002375,7]
[423970997,1780524654000,-151.0,0.00023782,6]
[423970991,1780524654000,-155.76861494,0.00023751,7]
[423970995,1780524654000,-256.85,0.00023763,7]
[423970996,1780524654000,-238.15,0.0002378,7]
[423970992,1780524654000,-150.54,0.00023751,7]
[423970998,1780524654000,-299.48,0.00023784,2]
[423970994,1780524654000,-225.83,0.00023754,7]
[423971000,1780524654000,-196.8,0.000238,7]
[423971010,1780524654000,-257.00829974,0.00023863,7]
[423971009,1780524654000,-225.83,0.00023854,7]
[423970999,1780524654000,-2151.0,0.0002379,30]
[423971007,1780524654000,-1000.0,0.00023851,10]
[423971006,1780524654000,-196.8,0.0002385,7]
[423971008,1780524654000,-492.0,0.00023851,10]
[423971004,1780524654000,-256.85,0.00023813,7]
[423971002,1780524654000,-225.83,0.00023804,7]
[423971001,1780524654000,-150.6478615,0.00023801,7]
[423971005,1780524654000,-238.15,0.0002383,7]
[423971092,1780524655000,-665.0,0.00024658,2]
[423971077,1780524655000,-158597.63900941,0.0002465,2]
[423971072,1780524655000,-160.0,0.00024619,9]
[423971078,1780524655000,-519.6724723,0.0002465,2]
[423971082,1780524655000,-380.0,0.00024658,2]
[423971093,1780524655000,-665.0,0.00024658,2]
[423971085,1780524655000,-151.5,0.00024658,2]
[423971086,1780524655000,-279.00158073,0.00024658,2]
[423971084,1780524655000,-151.5,0.00024658,2]
[423971081,1780524655000,-200.0,0.00024658,2]
[423971083,1780524655000,-151.5,0.00024658,2]
[423971108,1780524655000,-665.0,0.00024658,2]
[423971088,1780524655000,-665.0,0.00024658,2]
[423971089,1780524655000,-665.0,0.00024658,2]
[423971090,1780524655000,-665.0,0.00024658,2]
[423971094,1780524655000,-665.0,0.00024658,2]
[423971099,1780524655000,-665.0,0.00024658,2]
[423971096,1780524655000,-665.0,0.00024658,2]
[423971098,1780524655000,-665.0,0.00024658,2]
[423971095,1780524655000,-665.0,0.00024658,2]
[423971105,1780524655000,-665.0,0.00024658,2]
[423971101,1780524655000,-665.0,0.00024658,2]
[423971074,1780524655000,-3140.85975364,0.00024628,2]
[423971091,1780524655000,-665.0,0.00024658,2]
[423971076,1780524655000,-233.59982687,0.00024645,7]
[423971047,1780524655000,-196.8,0.0002425,7]
[423971080,1780524655000,-196.8,0.0002465,7]
[423971106,1780524655000,-665.0,0.00024658,2]
[423971043,1780524655000,-238.15,0.0002418,7]
[423971045,1780524655000,-196.8,0.000242,7]
[423971048,1780524655000,-238.15,0.0002428,7]
[423971046,1780524655000,-238.15,0.0002423,7]
[423971050,1780524655000,-196.8,0.000243,7]
[423971049,1780524655000,-151.0,0.000243,120]
[423971053,1780524655000,-196.8,0.0002435,7]
[423971052,1780524655000,-238.15,0.0002433,7]
[423971056,1780524655000,-196.8,0.000244,7]
[423971054,1780524655000,-238.15,0.0002438,7]
[423971055,1780524655000,-238.118631,0.00024393,14]
[423971057,1780524655000,-202.0,0.0002441,120]
[423971059,1780524655000,-238.15,0.0002443,7]
[423971065,1780524655000,-684.7064325,0.00024518,30]
[423971060,1780524655000,-207.773258,0.00024447,14]
[423971061,1780524655000,-196.8,0.0002445,7]
[423971063,1780524655000,-196.8,0.000245,7]
[423971062,1780524655000,-238.15,0.0002448,7]
[423971066,1780524655000,-684.7064325,0.00024518,15]
[423971067,1780524655000,-238.15,0.0002453,7]
[423971068,1780524655000,-196.8,0.0002455,7]
[423971071,1780524655000,-196.8,0.000246,7]
[423971073,1780524655000,-186.09658643,0.00024619,5]
[423971069,1780524655000,-238.15,0.0002458,7]
[423971075,1780524655000,-238.15,0.0002463,7]
[423971100,1780524655000,-665.0,0.00024658,2]
[423971110,1780524655000,-665.0,0.00024658,2]
[423971104,1780524655000,-665.0,0.00024658,2]
[423971150,1780524655000,-1423.526,0.000251,3]
[423971143,1780524655000,-1033.84392131,0.00025,2]
[423971141,1780524655000,-1000.0,0.00025,5]
[423971137,1780524655000,-10364.0,0.00025,2]
[423971140,1780524655000,-319.13707653,0.00025,7]
[423971142,1780524655000,-215.09681851,0.00025,2]
[423971145,1780524655000,-238.15,0.0002508,7]
[423971146,1780524655000,-1290.6,0.000251,3]
[423971147,1780524655000,-1914.91,0.000251,3]
[423971144,1780524655000,-238.15,0.0002503,7]
[423971151,1780524655000,-1423.526,0.000251,3]
[423971156,1780524655000,-238.15,0.0002518,7]
[423971162,1780524655000,-238.15,0.0002538,7]
[423971153,1780524655000,-303.14,0.000251,2]
[423971164,1780524655000,-238.15,0.0002543,7]
[423971163,1780524655000,-202.0,0.0002541,120]
[423971154,1780524655000,-211.48,0.000251,3]
[423971152,1780524655000,-1423.52,0.000251,3]
[423971155,1780524655000,-238.15,0.0002513,7]
[423971161,1780524655000,-666.732168,0.00025357,14]
[423971159,1780524655000,-238.15,0.0002528,7]
[423971158,1780524655000,-238.15,0.0002523,7]
[423971160,1780524655000,-238.15,0.0002533,7]
[423971149,1780524655000,-1912.06,0.000251,2]
[423971138,1780524655000,-1225.0,0.00025,2]
[423971132,1780524655000,-238.15,0.0002498,7]
[423971133,1780524655000,-158.20064465,0.00025,120]
[423971102,1780524655000,-665.0,0.00024658,2]
[423971120,1780524655000,-202.0,0.00024705,30]
[423971121,1780524655000,-238.15,0.0002473,7]
[423971122,1780524655000,-196.8,0.0002475,7]
[423971109,1780524655000,-665.0,0.00024658,2]
[423971113,1780524655000,-682.23369727,0.00024658,2]
[423971114,1780524655000,-225.407,0.0002468,2]
[423971115,1780524655000,-238.15,0.0002468,7]
[423971119,1780524655000,-359.899302,0.00024702,14]
[423971118,1780524655000,-160.0,0.000247,7]
[423971116,1780524655000,-196.8,0.000247,7]
[423971165,1780524655000,-102075.55751994,0.00025444,2]
[423971112,1780524655000,-665.0,0.00024658,2]
[423971123,1780524655000,-238.15,0.0002478,7]
[423971124,1780524655000,-196.8,0.000248,7]
[423971131,1780524655000,-1260.781697,0.0002498,5]
[423971129,1780524655000,-238.15,0.0002493,7]
[423971126,1780524655000,-196.8,0.0002485,7]
[423971134,1780524655000,-31000.0,0.00025,15]
[423971125,1780524655000,-238.15,0.0002483,7]
[423971135,1780524655000,-200.0,0.00025,120]
[423971127,1780524655000,-238.15,0.0002488,7]
[423971136,1780524655000,-2704.4420649,0.00025,2]
[423971128,1780524655000,-197.06161844,0.000249,7]
[423971111,1780524655000,-665.0,0.00024658,2]
[423971103,1780524655000,-665.0,0.00024658,2]
[423971167,1780524656000,-2896.80188072,0.00012673,2]
[423971168,1780524656000,-19197.45699858,0.00025444,2]
[423971686,1780524691000,-501.348,0.00013698,2]
[423972026,1780524712000,-44.3201,0.00013698,2]
[423972022,1780524712000,-500.0,0.00013698,2]
[423972024,1780524712000,-920.5079,0.00013698,2]
[423972025,1780524712000,-500.0,0.00013698,2]
[423972020,1780524712000,-500.0,0.00013698,2]
[423972018,1780524712000,-35.172,0.00013698,2]
[423972021,1780524712000,-500.0,0.00013698,2]
[423975432,1780524974000,-3128.2071,0.00013026,2]
[423975430,1780524974000,-5000.0,0.00012896,2]
[423975839,1780525137000,-5000.0,0.00012767,2]
[423975840,1780525137000,-138.933,0.00012896,2]
[423975848,1780525336000,40265.12254809,7.6e-05,2]
[423975953,1780525426000,-4253.18552,9.801e-05,2]
[423976325,1780525776000,-300.0,9.999e-05,2]
[423976326,1780525776000,-4719.31222369,0.0001,2]
[423976321,1780525776000,-1276.3140381,9.415e-05,2]
[423976323,1780525776000,-300.0,9.999e-05,2]
[423976324,1780525776000,-903.0,9.999e-05,2]
[423976322,1780525776000,-356.87443821,9.51e-05,2]
[423976374,1780525831000,-1488.49872879,9.9e-05,2]
[423976387,1780525831000,-5769.64545446,0.0001,2]
[423976380,1780525831000,-1000.0,0.0001,2]
[423976384,1780525831000,-2246.96246121,0.0001,2]
[423976376,1780525831000,-3837.40038052,0.0001,2]
[423976378,1780525831000,-2142.62743698,0.0001,2]
[423976382,1780525831000,-979.78345371,0.0001,2]
[423976397,1780525832000,-1093.98275846,0.0001,2]
[423976389,1780525832000,-1385.21676408,0.0001,2]
[423976649,1780525838000,-500.0,0.00011499,2]
[423976660,1780525838000,-500.0,0.00013698,2]
[423976650,1780525838000,-500.0,0.00011499,2]
[423976647,1780525838000,-500.0,0.00011499,2]
[423976639,1780525838000,-500.0,0.00011499,2]
[423976642,1780525838000,-250.0,0.00011499,2]
[423976645,1780525838000,-500.0,0.00011499,2]
[423976644,1780525838000,-500.0,0.00011499,2]
[423976641,1780525838000,-500.0,0.00011499,2]
[423976643,1780525838000,-500.0,0.00011499,2]
[423976648,1780525838000,-500.0,0.00011499,2]
[423976638,1780525838000,-202.69265703,0.00011499,2]
[423976637,1780525838000,-372.3503575,0.00011499,2]
[423976640,1780525838000,-500.0,0.00011499,2]
[423976635,1780525838000,-976.42822437,0.0001,2]
[423976636,1780525838000,-430.01641217,0.00010618,2]
[423976634,1780525838000,-678.31096082,0.0001,2]
[423976633,1780525838000,-3089.04556121,0.0001,2]
[423976625,1780525838000,-2018.26696822,9.801e-05,2]
[423976626,1780525838000,-2857.5150654,0.0001,2]
[423976628,1780525838000,-397.7362203,0.0001,2]
[423976661,1780525838000,-500.0,0.00013698,2]
[423976646,1780525838000,-500.0,0.00011499,2]
[423976651,1780525838000,-500.0,0.00011499,2]
[423976653,1780525838000,-55561.5879491,0.000115,2]
[423976654,1780525838000,-5102.78111684,0.000115,2]
[423976652,1780525838000,-500.0,0.00011499,2]
[423976677,1780525838000,-500.0,0.00013698,2]
[423976678,1780525838000,-500.0,0.00013698,2]
[423976676,1780525838000,-500.0,0.00013698,2]
[423976674,1780525838000,-472.44,0.00013698,2]
[423976669,1780525838000,-500.0,0.00013698,2]
[423976671,1780525838000,-500.0,0.00013698,2]
[423976663,1780525838000,-237.33,0.00013698,2]
[423976662,1780525838000,-500.0,0.00013698,2]
[423976668,1780525838000,-500.0,0.00013698,2]
[423976675,1780525838000,-500.0,0.00013698,2]
[423976670,1780525838000,-500.0,0.00013698,2]
[423976666,1780525838000,-500.0,0.00013698,2]
[423976664,1780525838000,-581.92,0.00013698,2]
[423976655,1780525838000,-501.34849625,0.00013698,2]
[423976658,1780525838000,-500.0,0.00013698,2]
[423976659,1780525838000,-500.0,0.00013698,2]
[423976657,1780525838000,-500.05,0.00013698,2]
[423976656,1780525838000,-480.58537087,0.00013698,2]
[423976673,1780525838000,-489.82,0.00013698,2]
[423976672,1780525838000,-500.0,0.00013698,2]
[423976667,1780525838000,-500.0,0.00013698,2]
[423976665,1780525838000,-500.0,0.00013698,2]
[423976687,1780525839000,-920.5076,0.00013698,2]
[423976679,1780525839000,-500.0,0.00013698,2]
[423976683,1780525839000,-500.0,0.00013698,2]
[423976682,1780525839000,-500.0,0.00013698,2]
[423976685,1780525839000,-602.6,0.00013698,2]
[423976686,1780525839000,-500.0,0.00013698,2]
[423976680,1780525839000,-500.0,0.00013698,2]
[423976684,1780525839000,-455.6799,0.00013698,2]
[423976681,1780525839000,-500.0,0.00013698,2]
[423976692,1780525839000,-467.9,0.00013698,2]
[423976693,1780525839000,-500.0,0.00013698,2]
[423976689,1780525839000,-500.0,0.00013698,2]
[423976701,1780525839000,-501.19873282,0.00013698,2]
[423976698,1780525839000,-500.0,0.00013698,2]
[423976695,1780525839000,-500.4710508,0.00013698,2]
[423976696,1780525839000,-500.0,0.00013698,2]
[423976694,1780525839000,-500.0,0.00013698,2]
[423976697,1780525839000,-500.94243605,0.00013698,2]
[423976699,1780525839000,-500.74604964,0.00013698,2]
[423976688,1780525839000,-500.0,0.00013698,2]
[423976691,1780525839000,-500.0,0.00013698,2]
[423976690,1780525839000,-500.0,0.00013698,2]
[423976845,1780525840000,-158.25578111,0.0002314,2]
[423976861,1780525840000,-157.0,0.00024397,120]
[423976866,1780525840000,-380.0,0.00024658,2]
[423976854,1780525840000,-157.0,0.00023397,120]
[423976847,1780525840000,-253.78256935,0.000232,30]
[423976849,1780525840000,-215.72330054,0.0002335,2]
[423976850,1780525840000,-194.15,0.00023396,2]
[423976835,1780525840000,-158.0,0.00022699,30]
[423976831,1780525840000,-158.25578111,0.0002254,2]
[423976829,1780525840000,-158.25578111,0.0002244,2]
[423976844,1780525840000,-158.25578111,0.0002304,2]
[423976833,1780525840000,-158.25578111,0.0002264,2]
[423976842,1780525840000,-160.0,0.00023,2]
[423976838,1780525840000,-158.25578111,0.0002284,2]
[423976837,1780525840000,-158.25578111,0.0002274,2]
[423976840,1780525840000,-158.25578111,0.0002294,2]
[423976852,1780525840000,-180.08774704,0.00023396,2]
[423976827,1780525840000,-158.25578111,0.0002234,2]
[423976873,1780525840000,-151.0,0.00025099,3]
[423976894,1780525840000,-157.0,0.00025397,120]
[423976856,1780525840000,-296.72,0.0002341,30]
[423976896,1780525840000,-152.0,0.00025422,7]
[423976881,1780525840000,-151.0,0.00025099,3]
[423976884,1780525840000,-271.83529402,0.00025099,3]
[423976892,1780525840000,-960.69,0.00025344,2]
[423976877,1780525840000,-151.0,0.00025099,3]
[423976879,1780525840000,-151.0,0.00025099,3]
[423976890,1780525840000,-5985.03475372,0.00025244,2]
[423976897,1780525840000,-143482.2253091,0.00025444,2]
[423976875,1780525840000,-151.0,0.00025099,3]
[423976888,1780525840000,-318.24769456,0.00025243,2]
[423976870,1780525840000,-151.0,0.00025099,3]
[423976872,1780525840000,-151.0,0.00025099,3]
[423976868,1780525840000,-2299.25648851,0.00024681,2]
[423976857,1780525840000,-1474.13110483,0.0002341,120]
[423976859,1780525840000,-1902.3756562,0.0002435,2]
[423976864,1780525840000,-296.72958958,0.00024581,7]
[423976886,1780525840000,-185.0,0.00025225,2]
[423976863,1780525840000,-158.25578111,0.00024581,7]
[423977366,1780525844000,-0.65206556,0.00011399,2]
[423977628,1780525846000,-2020.91147806,0.00011399,2]
[423977630,1780525846000,-635.1160683,0.00016013,2]
[423978308,1780525910000,-5000.0,0.00013291,2]
[423978309,1780525926000,-400.0,0.00013291,2]
[423978311,1780525950000,1335.244216,0.00023397,30]
[423978312,1780525952000,151.0,0.0002,120]
[423978313,1780525953000,151.0,0.000215,120]
[423978314,1780525955000,151.0,0.000231,120]
[423978639,1780527032000,-500.0,0.00013698,2]
[423978637,1780527032000,-401.86370487,0.00013698,2]
[423978625,1780527032000,-433.45811007,0.00011204,2]
[423978634,1780527032000,-400.0,0.00011431,2]
[423978628,1780527032000,-441.08833163,0.00011204,2]
[423978632,1780527032000,-4289.42438439,0.00011317,2]
[423978630,1780527032000,-710.57561561,0.00011317,2]
[423978652,1780527032000,-632.55482152,0.00020799,2]
[423978635,1780527032000,-210.55863571,0.00013191,2]
[423978656,1780527032000,-500.0,0.00020799,2]
[423978654,1780527032000,-180.52951233,0.00020799,2]
[423978641,1780527032000,-300.38085183,0.00013972,7]
[423978660,1780527032000,-500.0,0.00020799,2]
[423978657,1780527032000,-500.0,0.00020799,2]
[423978659,1780527032000,-500.0,0.00020799,2]
[423978647,1780527032000,-342.74902314,0.000174,2]
[423978643,1780527032000,-500.0,0.00013972,2]
[423978662,1780527032000,-500.0,0.00020799,2]
[423978645,1780527032000,-342.74902316,0.000174,2]
[423978648,1780527032000,-342.74902314,0.000174,2]
[423978658,1780527032000,-500.0,0.00020799,2]
[423978650,1780527032000,-1413.0,0.0001977,2]
[423978723,1780527033000,-1000.0,0.0002318,5]
[423978724,1780527033000,-1000.0,0.000232,5]
[423978725,1780527033000,-1000.0,0.0002322,5]
[423978750,1780527033000,-150.19,0.00023877,7]
[423978710,1780527033000,-160.0,0.00023,2]
[423978708,1780527033000,-500.0,0.00022259,8]
[423978706,1780527033000,-300.38085183,0.00022227,7]
[423978715,1780527033000,-1000.0,0.000231,5]
[423978713,1780527033000,-1414.69018,0.0002306,5]
[423978712,1780527033000,-2082.08606137,0.00023027,2]
[423978721,1780527033000,-1000.0,0.0002316,5]
[423978714,1780527033000,-1000.0,0.0002308,5]
[423978720,1780527033000,-463.114,0.0002314,2]
[423978719,1780527033000,-1000.0,0.0002314,5]
[423978696,1780527033000,-500.0,0.00021698,2]
[423978717,1780527033000,-150.19,0.00023127,7]
[423978722,1780527033000,-150.19,0.00023177,7]
[423978731,1780527033000,-1000.0,0.000233,5]
[423978739,1780527033000,-300.38085183,0.00023397,7]
[423978729,1780527033000,-150.19,0.00023277,7]
[423978716,1780527033000,-1000.0,0.0002312,5]
[423978690,1780527033000,-500.0,0.00021073,2]
[423978705,1780527033000,-1000.0,0.00022154,5]
[423978692,1780527033000,-231.99066593,0.00021347,2]
[423978666,1780527033000,-500.0,0.00020799,2]
[423978668,1780527033000,-500.0,0.00020799,2]
[423978664,1780527033000,-515.04956163,0.00020799,2]
[423978671,1780527033000,-500.0,0.00020799,2]
[423978669,1780527033000,-500.0,0.00020799,2]
[423978678,1780527033000,-500.0,0.00020799,2]
[423978675,1780527033000,-500.0,0.00020799,2]
[423978683,1780527033000,-353.7209,0.000208,2]
[423978673,1780527033000,-500.0,0.00020799,2]
[423978697,1780527033000,-342.74902316,0.00022,30]
[423978676,1780527033000,-500.0,0.00020799,2]
[423978680,1780527033000,-406.52162137,0.00020799,2]
[423978685,1780527033000,-563.18,0.000208,2]
[423978687,1780527033000,-1049.9676,0.000208,2]
[423978699,1780527033000,-342.74902314,0.00022,30]
[423978688,1780527033000,-646.2866,0.000208,2]
[423978701,1780527033000,-342.74902314,0.00022,30]
[423978730,1780527033000,-1000.0,0.0002328,5]
[423978694,1780527033000,-165.0,0.00021698,30]
[423978702,1780527033000,-217.56715063,0.00022027,2]
[423978682,1780527033000,-1964.253,0.000208,2]
[423978728,1780527033000,-1000.0,0.0002326,5]
[423978726,1780527033000,-150.19,0.00023227,7]
[423978732,1780527033000,-150.19,0.00023327,7]
[423978763,1780527033000,-500.0,0.00024376,2]
[423978756,1780527033000,-150.19,0.00024177,7]